[Event "14th Chennai GM Open 2023"]
[Site "Chennai"]
[Date "2024.01.03"]
[Round "5.5"]
[White "Srihari L R"]
[Black "Jaiswal, Rupesh"]
[Result "1-0"]
[ECO "E64"]
[WhiteElo "2467"]
[BlackElo "2009"]
[Annotator "TA"]
[PlyCount "119"]
[EventDate "2023.12.31"]
[EventType "swiss"]
[EventCountry "IND"]
[SourceTitle "playchess.com"]
[Source "ChessBase"]
[SourceQuality "1"]
[TimeControl "5400+30"]

{[%evp 13,119,12,12,10,29,22,52,24,20,25,24,18,38,23,23,14,8,0,14,-1,10,17,2,-8,77,73,77,64,100,76,120,118,124,125,124,125,123,126,135,114,127,114,114,108,113,113,124,87,93,94,101,79,90,83,93,85,72,77,117,64,102,70,118,73,113,104,112,62,69,32,43,33,74,70,155,78,93,93,80,77,114,114,114,106,186,173,322,330,352,339,358,362,366,294,304,294,473,452,709,713,713,713,713,713,1106,1087,951,923]} 1. d4 {[%emt 1:31:00]} Nf6 {[%emt 0:03:54]} 2. c4 {[%emt 0:00:00]} g6 {[%emt 0:00:13]} 3. g3 {[%emt 0:00:00]} Bg7 {[%emt 0:00:05]} 4. Bg2 {[%emt 0:00:00]} O-O {[%emt 0:00:05]} 5. Nc3 {[%emt 0:00:00]} d6 {[%emt 0:00:04]} 6. Nf3 {[%emt 0:00:00]} c5 {[%emt 0:00:07]} 7. d5 {[%emt 0:00:00]} e6 {[%emt 0:00:11]} 8. O-O {[%emt 0:00:00] E64: King's Indian: Fianchetto: 6...c5 7 d5.} Re8 {[%emt 0:00:04]} 9. Bf4 {[%emt 0:00:00] 9.Re1 gains popularity.} e5 {[%emt 0:07:04]} 10. Bg5 {[%emt 0:00:00] White is slightly better.} h6 {[%emt 0:00:20]} 11. Bxf6 {[%emt 0:00:00]} Qxf6 {[%emt 0:00:20]} 12. e4 {[%emt 0:05:30] [#]} Qe7 $146 {[%emt 0:17:34]} ({Predecessor:} 12... h5 13. Rb1 Bh6 14. b4 cxb4 15. Rxb4 Na6 16. Rb2 b6 17. Qa4 Rd8 18. Nb5 Nc5 {0-1 Comellas Blanchart,J (1986)-Dhruva,T (2079) Barcelona Sant Marti op-A 23rd 2023 (6)}) 13. Ne1 {[%emt 0:00:00]} f5 {[%emt 0:04:13]} 14. Nd3 {[%emt 0:00:00]} Nd7 {[%emt 0:11:20]} 15. Qc2 {[%emt 0:00:00]} f4 {[%emt 0:12:50]} 16. Nb5 {[%emt 0:00:00][%cal Bc3b5,Bb5c7,Bc7e6][%mdl 32]} Rf8 {[%emt 0:19:43]} 17. Nc7 {[%emt 0:00:00]} Rb8 {[%emt 0:00:02]} 18. Ne6 $36 {[%emt 0:00:00][%mdl 2048] [#] Black is under pressure.} f3 {[%emt 0:00:13]} 19. Bh1 $1 $16 {[%emt 0:00:00] White has more active pieces. The black rooks are badly placed.} Rf6 {[%emt 0:00:43]} 20. Ne1 {[%emt 0:00:00]} Qf7 {[%emt 0:06:24]} 21. Qd3 {[%emt 0:00:00]} Nb6 {[%emt 0:00:06]} 22. Nxg7 {[%emt 0:00:00]} ({But not} 22. Nxf3 $6 Bxe6 23. dxe6 Qxe6 $11) 22... Kxg7 {[%emt 0:00:02]} 23. Bxf3 {[%emt 0:00:00]} ({Reject} 23. Nxf3 $6 Bh3 $11) 23... Bd7 {[%emt 0:02:37]} 24. Bg2 {[%emt 0:00:00]} Rf8 {[%emt 0:00:03][%cal Rf6f2]} 25. f3 {[%emt 0:00:00]} g5 {[%emt 0:01:32]} 26. b3 {[%emt 0:00:00]} g4 {[%emt 0:13:41]} 27. fxg4 {[%emt 0:00:00]} Rxf1+ {[%emt 0:00:00]} 28. Qxf1 {[%emt 0:00:00]} Qxf1+ {[%emt 0:00:00]} 29. Bxf1 {[%emt 0:00:00] Black must now prevent h3.} Bxg4 {[%emt 0:00:00]} 30. Nd3 {[%emt 0:00:00]} Nd7 {[%emt 0:00:00]} 31. Nf2 {[%emt 0:00:00]} Nf6 {[%emt 0:00:00]} 32. Re1 {[%emt 0:00:00]} Bd7 {[%emt 0:00:00]} 33. Be2 {[%emt 0:00:00]} Kg6 {[%emt 0:00:00]} 34. a3 {[%emt 0:00:00]} Kf7 {[%emt 0:00:15]} 35. b4 {[%emt 0:00:00]} Ke7 {[%emt 0:00:09]} 36. Kg2 {[%emt 0:00:00]} (36. bxc5 $16 dxc5 37. a4) 36... b6 {[%emt 0:00:35]} 37. Ra1 {[%emt 0:01:26]} Ba4 {[%emt 0:01:10]} (37... Rc8 $14) 38. Rc1 {[%emt 0:03:31]} Be8 {[%emt 0:00:30]} 39. Bf3 {[%emt 0:00:53]} Bg6 {[%emt 0:00:27] [#]} 40. Rc3 {[%emt 0:00:14]} (40. bxc5 $1 $16 {And now c6 would win.} bxc5 41. Rb1) 40... Rc8 {[%emt 0:00:56]} 41. Kf1 {[%emt 0:01:11]} h5 {[%emt 0:00:55]} 42. Ke2 {[%emt 0:00:16]} Nh7 {[%emt 0:01:11]} 43. Ke3 {[%emt 0:01:39]} Rf8 {[%emt 0:00:33]} (43... Nf6 $14) 44. Nd3 {[%emt 0:00:54]} (44. bxc5 $142 {c6 would be deadly.} dxc5 45. Be2) 44... Kd7 {[%emt 0:00:36]} 45. Rc1 {[%emt 0:02:05]} Nf6 {[%emt 0:00:31]} 46. Nf2 {[%emt 0:00:53] Against Ng4+} Nh7 {[%emt 0:00:48]} 47. h4 {[%emt 0:00:27]} Nf6 {[%emt 0:00:31]} 48. Rg1 {[%emt 0:00:16]} Ke7 {[%emt 0:00:56] [#]} (48... Rh8 $16 {might work better.}) 49. bxc5 $1 $18 {[%emt 0:00:11]} dxc5 {[%emt 0:00:23]} (49... bxc5 $142 50. Rb1 Nd7) 50. g4 {[%emt 0:00:08]} hxg4 {[%emt 0:00:34]} 51. Nxg4 {[%emt 0:00:09]} Nxg4+ {[%emt 0:00:28]} 52. Rxg4 {[%emt 0:01:08][%mdl 4096] Endgame KRB-KRB} ({Not} 52. Bxg4 Rh8 $18) 52... Kf6 {[%emt 0:00:36]} 53. Rg1 {[%emt 0:00:37] aiming for h5.} Rh8 {[%emt 0:00:36]} 54. h5 {[%emt 0:00:15][%cal Bh4h5,Bh5h6][%mdl 32]} Bf7 {[%emt 0:00:00]} (54... Be8 55. Be2 Ke7) 55. Be2 {[%emt 0:00:12] White is clearly winning.} Rh7 {[%emt 0:01:11]} (55... Be8 $142 56. Rf1+ Ke7) 56. Rf1+ {[%emt 0:00:08]} Ke7 {[%emt 0:00:01]} 57. Rf5 {[%emt 0:00:05]} Kd6 {[%emt 0:00:12]} 58. Rf6+ {[%emt 0:00:09]} Kc7 {[%emt 0:00:44]} 59. h6 {[%emt 0:00:09]} Be8 {[%emt 0:00:29]} 60. Bg4 {[%emt 0:00:18] Weighted Error Value: White=0.11 (very precise) /Black=0.28 (precise)} 1-0

[Event "14th Chennai GM Open 2023"]
[Site "Chennai"]
[Date "2024.01.03"]
[Round "5.6"]
[White "Ziatdinov, Raset"]
[Black "Ajay Karthikeyan"]
[Result "1-0"]
[ECO "A43"]
[WhiteElo "2100"]
[BlackElo "2423"]
[Annotator "RC"]
[PlyCount "77"]
[EventDate "2023.12.31"]
[EventType "swiss"]
[EventCountry "IND"]
[SourceTitle "playchess.com"]
[Source "ChessBase"]
[SourceQuality "1"]
[TimeControl "5400+30"]

1. e4 {[%emt 0:00:03]} g6 {[%emt 0:00:08]} 2. d4 {[%emt 0:00:05]} Bg7 {[%emt 0:00:04]} 3. Nf3 {[%emt 0:00:05]} c5 {[%emt 0:00:05]} 4. d5 {[%emt 0:00:07]} d6 {[%emt 0:00:05]} 5. Be2 {[%emt 0:00:20]} Nf6 {[%emt 0:00:30]} 6. Nc3 {[%emt 0:00:08]} O-O {[%emt 0:00:08]} 7. O-O {[%emt 0:00:06]} Na6 {[%emt 0:02:45]} 8. Re1 {[%emt 0:01:18]} Bg4 {[%emt 0:00:52]} 9. Be3 {[%emt 0:00:38]} Bxf3 {[%emt 0:01:07]} 10. Bxf3 {[%emt 0:00:07]} Rb8 {[%emt 0:01:09]} 11. a4 {[%emt 0:00:33]} Nc7 {[%emt 0:04:03]} 12. h4 {[%emt 0:02:08]} b6 {[%emt 0:04:06]} 13. h5 {[%emt 0:00:12]} a6 {[%emt 0:03:30]} 14. h6 {[%emt 0:04:07]} Bh8 {[%emt 0:00:07]} 15. Bg5 {[%emt 0:01:01]} Nd7 {[%emt 0:00:37]} 16. Be2 {[%emt 0:06:10]} Re8 {[%emt 0:02:16]} 17. Qd2 {[%emt 0:01:17]} b5 {[%emt 0:04:15]} 18. Reb1 {[%emt 0:04:46]} Rb7 {[%emt 0:06:34]} 19. Bf1 {[%emt 0:06:31]} Qb8 {[%emt 0:09:03]} 20. axb5 {[%emt 0:01:57]} axb5 {[%emt 0:00:52]} 21. Ra5 {[%emt 0:00:20]} b4 {[%emt 0:11:34]} 22. Nd1 {[%emt 0:00:17]} Ra7 {[%emt 0:00:03]} 23. Rxa7 {[%emt 0:00:49]} Qxa7 {[%emt 0:00:02]} 24. Ne3 {[%emt 0:01:06]} Kf8 {[%emt 0:04:11]} 25. Nc4 {[%emt 0:05:13]} Qa2 {[%emt 0:06:31]} 26. Qe1 {[%emt 0:06:10]} Ra8 {[%emt 0:03:55]} 27. e5 {[%emt 0:05:58]} dxe5 {[%emt 0:02:27]} 28. Bxe7+ {[%emt 0:01:22]} Kg8 {[%emt 0:00:40]} 29. d6 {[%emt 0:03:44]} Ne6 {[%emt 0:01:22]} 30. Ne3 {[%emt 0:10:53]} Nb6 {[%emt 0:00:02]} 31. c3 {[%emt 0:01:42]} b3 {[%emt 0:03:13]} 32. Nc4 {[%emt 0:00:59]} Nd7 {[%emt 0:00:41]} 33. Na3 {[%emt 0:04:35]} Nef8 {[%emt 0:07:32]} 34. Qe4 {[%emt 0:03:21]} Rb8 {[%emt 0:01:02]} 35. Bc4 {[%emt 0:07:29]} Nb6 {[%emt 0:00:10]} 36. Bb5 {[%emt 0:00:07]} Nbd7 {[%emt 0:01:37]} 37. Bxd7 {[%emt 0:00:42]} Nxd7 {[%emt 0:00:07]} 38. Qc6 {[%emt 0:00:08]} Nf8 {[%emt 0:02:35]} 39. d7 {[%emt 0:01:59]} 1-0

[Event "14th Chennai GM Open 2023"]
[Site "Chennai"]
[Date "2024.01.03"]
[Round "5.7"]
[White "Viani Antonio Dcunha"]
[Black "Majumder Shrayan"]
[Result "1/2-1/2"]
[ECO "C09"]
[WhiteElo "2407"]
[BlackElo "1916"]
[Annotator "RC"]
[PlyCount "176"]
[EventDate "2023.12.31"]
[EventType "swiss"]
[EventCountry "IND"]
[SourceTitle "playchess.com"]
[Source "ChessBase"]
[SourceQuality "1"]
[TimeControl "5400+30"]

1. e4 {[%emt 0:00:15]} c5 {[%emt 0:00:40]} 2. Nf3 {[%emt 0:00:10]} Nc6 {[%emt 0:00:27]} 3. c3 {[%emt 0:00:32]} e6 {[%emt 0:00:30]} 4. d4 {[%emt 0:00:20]} d5 {[%emt 0:00:07]} 5. exd5 {[%emt 0:01:20]} exd5 {[%emt 0:00:14]} 6. Bb5 {[%emt 0:00:33]} Bd6 {[%emt 0:09:06]} 7. O-O {[%emt 0:00:50]} Nge7 {[%emt 0:09:36]} 8. dxc5 {[%emt 0:04:17]} Bxc5 {[%emt 0:00:08]} 9. Nbd2 {[%emt 0:01:43]} O-O {[%emt 0:01:44]} 10. Nb3 {[%emt 0:01:43]} Bd6 {[%emt 0:05:54]} 11. Be3 {[%emt 0:10:53]} Qc7 {[%emt 0:12:35]} 12. Re1 {[%emt 0:04:59]} Bg4 {[%emt 0:03:45]} 13. h3 {[%emt 0:00:54]} Bh5 {[%emt 0:00:19]} 14. Be2 {[%emt 0:01:21]} Rad8 {[%emt 0:03:12]} 15. Nfd4 {[%emt 0:01:25]} Bxe2 {[%emt 0:00:38]} 16. Qxe2 {[%emt 0:00:13]} a6 {[%emt 0:05:35]} 17. Bg5 {[%emt 0:06:31]} Rde8 {[%emt 0:01:55]} 18. Nxc6 {[%emt 0:02:33]} Qxc6 {[%emt 0:08:59]} 19. Nd4 {[%emt 0:01:30]} Qd7 {[%emt 0:00:21]} 20. Bxe7 {[%emt 0:18:10]} Rxe7 {[%emt 0:03:53]} 21. Qd3 {[%emt 0:03:44]} g6 {[%emt 0:05:46]} 22. Rxe7 {[%emt 0:01:03]} Bxe7 {[%emt 0:01:48]} 23. Rd1 {[%emt 0:04:38]} Rd8 {[%emt 0:01:17]} 24. Ne2 {[%emt 0:04:25]} Bd6 {[%emt 0:04:33]} 25. Kf1 {[%emt 0:01:41]} Be5 {[%emt 0:00:26]} 26. a3 {[%emt 0:03:53]} Kg7 {[%emt 0:06:22]} 27. Rd2 {[%emt 0:01:17]} Kg8 {[%emt 0:00:41]} 28. Qf3 {[%emt 0:02:43]} Qc6 {[%emt 0:02:03]} 29. g3 {[%emt 0:01:34]} Kg7 {[%emt 0:02:25]} 30. Kg2 {[%emt 0:00:23]} h5 {[%emt 0:01:32]} 31. h4 {[%emt 0:01:22]} Qf6 {[%emt 0:01:29]} 32. Qe3 {[%emt 0:01:30]} Bc7 {[%emt 0:00:45]} 33. Rd3 {[%emt 0:02:29]} Bb6 {[%emt 0:01:33]} 34. Nd4 {[%emt 0:00:46]} Bxd4 {[%emt 0:00:33]} 35. Rxd4 {[%emt 0:00:11]} b5 {[%emt 0:02:55]} 36. Rf4 {[%emt 0:01:11]} Qe6 {[%emt 0:00:06]} 37. Qd4+ {[%emt 0:01:01]} Kg8 {[%emt 0:02:30]} 38. Rf3 {[%emt 0:02:03]} Rd6 {[%emt 0:01:00]} 39. Re3 {[%emt 0:00:51]} Qd7 {[%emt 0:00:11]} 40. Re5 {[%emt 0:01:37]} Qc6 {[%emt 0:00:43]} 41. Kg1 {[%emt 0:00:42]} Qd7 {[%emt 0:01:03]} 42. Kh2 {[%emt 0:02:09]} Qc6 {[%emt 0:00:34]} 43. f4 {[%emt 0:04:17]} f6 {[%emt 0:01:23]} 44. Re7 {[%emt 0:01:05]} Re6 {[%emt 0:00:03]} 45. Qa7 {[%emt 0:00:32]} Rxe7 {[%emt 0:00:06]} 46. Qxe7 {[%emt 0:00:02]} f5 {[%emt 0:00:38]} 47. Kg1 {[%emt 0:01:00]} Qb6+ {[%emt 0:00:36]} 48. Kf1 {[%emt 0:00:47]} d4 {[%emt 0:00:27]} 49. Qe8+ {[%emt 0:00:15]} Kg7 {[%emt 0:00:44]} 50. Qe5+ {[%emt 0:00:53]} Kf7 {[%emt 0:00:12]} 51. Qd5+ {[%emt 0:00:54]} Ke7 {[%emt 0:00:10]} 52. cxd4 {[%emt 0:00:29]} Qd6 {[%emt 0:01:08]} 53. Qe5+ {[%emt 0:01:39]} Kd7 {[%emt 0:00:07]} 54. d5 {[%emt 0:01:02]} Qc5 {[%emt 0:00:22]} 55. Kg2 {[%emt 0:01:47]} Qc2+ {[%emt 0:00:34]} 56. Kh3 {[%emt 0:00:03]} Qd1 {[%emt 0:00:57]} 57. Qe6+ {[%emt 0:00:15]} Kd8 {[%emt 0:00:07]} 58. Qd6+ {[%emt 0:00:08]} Ke8 {[%emt 0:00:56]} 59. Qxg6+ {[%emt 0:00:08]} Kd8 {[%emt 0:00:07]} 60. Qd6+ {[%emt 0:00:36]} Ke8 {[%emt 0:00:23]} 61. Qe6+ {[%emt 0:00:57]} Kd8 {[%emt 0:00:12]} 62. Qf6+ {[%emt 0:01:07]} Ke8 {[%emt 0:00:22]} 63. Qg6+ {[%emt 0:00:47]} Kd8 {[%emt 0:01:16]} 64. Qg5+ {[%emt 0:00:11]} Ke8 {[%emt 0:00:15]} 65. Qg8+ {[%emt 0:00:09]} Kd7 {[%emt 0:00:29]} 66. Qf7+ {[%emt 0:00:17]} Kd8 {[%emt 0:00:11]} 67. Qf8+ {[%emt 0:00:14]} Kc7 {[%emt 0:01:04]} 68. Qe7+ {[%emt 0:00:29]} Kb6 {[%emt 0:01:09]} 69. Qd6+ {[%emt 0:00:10]} Ka5 {[%emt 0:00:26]} 70. Qb4+ {[%emt 0:02:11]} Kb6 {[%emt 0:00:07]} 71. Kh2 {[%emt 0:00:45]} Qxd5 {[%emt 0:00:50]} 72. Qc3 {[%emt 0:00:45]} Qd1 {[%emt 0:00:36]} 73. Qf6+ {[%emt 0:00:19]} Kb7 {[%emt 0:00:17]} 74. Qe7+ {[%emt 0:00:35]} Kb6 {[%emt 0:00:19]} 75. Qe6+ {[%emt 0:00:06]} Kb7 {[%emt 0:00:10]} 76. Qe5 {[%emt 0:00:31]} Qd2+ {[%emt 0:00:54]} 77. Kh3 {[%emt 0:00:11]} Qd1 {[%emt 0:00:20]} 78. Kg2 {[%emt 0:02:29]} Qc2+ {[%emt 0:00:45]} 79. Kf3 {[%emt 0:00:00]} Qd3+ {[%emt 0:00:38]} 80. Qe3 {[%emt 0:00:00]} Qf1+ {[%emt 0:00:16]} 81. Qf2 {[%emt 0:00:00]} Qxf2+ {[%emt 0:00:50]} 82. Kxf2 {[%emt 0:00:00]} Kc6 {[%emt 0:00:07]} 83. Ke3 {[%emt 0:00:00]} Kd5 {[%emt 0:00:16]} 84. Kd3 {[%emt 0:00:12]} a5 {[%emt 0:00:41]} 85. b3 {[%emt 0:00:54]} b4 {[%emt 0:01:37]} 86. a4 {[%emt 0:01:07]} Kc5 {[%emt 0:00:00]} 87. Ke3 {[%emt 0:00:24]} Kd5 {[%emt 0:00:00]} 88. Kd3 {[%emt 0:00:03]} Kc5 {[%emt 0:00:00]} 1/2-1/2

[Event "14th Chennai GM Open 2023"]
[Site "Chennai"]
[Date "2024.01.03"]
[Round "5.8"]
[White "Tologon tegin, Semetei"]
[Black "Aakash G"]
[Result "0-1"]
[ECO "D10"]
[WhiteElo "2384"]
[BlackElo "1823"]
[Annotator "RC"]
[PlyCount "149"]
[EventDate "2023.12.31"]
[EventType "swiss"]
[EventCountry "IND"]
[SourceTitle "playchess.com"]
[Source "ChessBase"]
[SourceQuality "1"]
[TimeControl "5400+30"]

1. d4 {[%emt 0:00:12]} d5 {[%emt 0:00:10]} 2. c4 {[%emt 0:00:10]} c6 {[%emt 0:00:07]} 3. cxd5 {[%emt 0:00:35]} cxd5 {[%emt 0:00:08]} 4. Nc3 {[%emt 0:00:03]} Nf6 {[%emt 0:00:19]} 5. Bf4 {[%emt 0:00:10]} Nc6 {[%emt 0:00:32]} 6. e3 {[%emt 0:00:09]} a6 {[%emt 0:00:38]} 7. Bd3 {[%emt 0:00:38]} Bg4 {[%emt 0:00:24]} 8. f3 {[%emt 0:01:32]} Bd7 {[%emt 0:00:29]} 9. Nge2 {[%emt 0:00:42]} e6 {[%emt 0:00:11]} 10. g4 {[%emt 0:01:32]} Qb6 {[%emt 0:06:58]} 11. Rb1 {[%emt 0:23:19]} Nb4 {[%emt 0:05:25]} 12. Kf2 {[%emt 0:00:44]} Bd6 {[%emt 0:02:24]} 13. Rc1 {[%emt 0:31:12]} Bxf4 {[%emt 0:07:23]} 14. exf4 {[%emt 0:04:35]} h5 {[%emt 0:02:03]} 15. g5 {[%emt 0:05:37]} Nxd3+ {[%emt 0:00:15]} 16. Qxd3 {[%emt 0:00:04]} Ng8 {[%emt 0:00:09]} 17. Qd2 {[%emt 0:19:25]} Ne7 {[%emt 0:00:58]} 18. h4 {[%emt 0:00:15]} Nf5 {[%emt 0:02:54]} 19. Rcd1 {[%emt 0:00:06]} O-O {[%emt 0:01:38]} 20. Ng3 {[%emt 0:00:08]} Nxg3 {[%emt 0:00:24]} 21. Kxg3 {[%emt 0:00:01]} f6 {[%emt 0:00:24]} 22. Rde1 {[%emt 0:06:34]} Qd6 {[%emt 0:02:01]} 23. g6 {[%emt 0:01:58]} f5 {[%emt 0:02:00]} 24. Kf2 {[%emt 0:00:19]} Be8 {[%emt 0:01:27]} 25. Rhg1 {[%emt 0:00:03]} Rf6 {[%emt 0:00:42]} 26. Rg5 {[%emt 0:00:03]} Rxg6 {[%emt 0:01:11]} 27. Rxg6 {[%emt 0:01:16]} Bxg6 {[%emt 0:01:13]} 28. Rc1 {[%emt 0:00:01]} Qe7 {[%emt 0:02:37]} 29. Kg3 {[%emt 0:00:07]} Be8 {[%emt 0:02:56]} 30. Nd1 {[%emt 0:00:17]} Qf6 {[%emt 0:01:17]} 31. Nf2 {[%emt 0:00:35]} Qg6+ {[%emt 0:00:06]} 32. Kh3 {[%emt 0:01:13]} Bb5 {[%emt 0:00:24]} 33. b3 {[%emt 0:00:02]} a5 {[%emt 0:00:53]} 34. a4 {[%emt 0:00:15]} Ba6 {[%emt 0:00:05]} 35. Qe1 {[%emt 0:01:51]} b5 {[%emt 0:03:08]} 36. Qe5 {[%emt 0:01:39]} bxa4 {[%emt 0:00:38]} 37. bxa4 {[%emt 0:00:01]} Qf6 {[%emt 0:01:18]} 38. Kg3 {[%emt 0:00:02]} Bc4 {[%emt 0:02:48]} 39. Rb1 {[%emt 0:00:16]} Qg6+ {[%emt 0:02:53]} 40. Kh2 {[%emt 0:00:01]} Qf6 {[%emt 0:00:10]} 41. Kg3 {[%emt 0:00:03]} Qg6+ {[%emt 0:00:14]} 42. Kh2 {[%emt 0:00:03]} Qf6 {[%emt 0:00:06]} 43. Nh3 {[%emt 0:01:05]} Qxh4 {[%emt 0:02:10]} 44. Rb7 {[%emt 0:00:11]} Qf6 {[%emt 0:00:32]} 45. Rb8+ {[%emt 0:00:12]} Rxb8 {[%emt 0:00:59]} 46. Qxb8+ {[%emt 0:00:01]} Qf8 {[%emt 0:01:35]} 47. Qb6 {[%emt 0:00:01]} Qe8 {[%emt 0:00:11]} 48. Ng5 {[%emt 0:00:12]} Kh8 {[%emt 0:02:37]} 49. Kg3 {[%emt 0:01:02]} Bd3 {[%emt 0:00:46]} 50. Qxa5 {[%emt 0:04:04]} Bc2 {[%emt 0:00:25]} 51. Qe1 {[%emt 0:00:45]} Bxa4 {[%emt 0:00:26]} 52. Qe5 {[%emt 0:00:24]} Bd7 {[%emt 0:00:48]} 53. Kh4 {[%emt 0:00:04]} Kg8 {[%emt 0:00:46]} 54. Qd6 {[%emt 0:00:14]} Qd8 {[%emt 0:00:47]} 55. Kh3 {[%emt 0:00:59]} Qc8 {[%emt 0:00:13]} 56. Qe7 {[%emt 0:00:17]} Qe8 {[%emt 0:00:12]} 57. Qb4 {[%emt 0:00:54]} Qc8 {[%emt 0:00:55]} 58. Qb6 {[%emt 0:00:18]} Qc6 {[%emt 0:00:52]} 59. Qd8+ {[%emt 0:00:21]} Be8 {[%emt 0:00:05]} 60. Kh4 {[%emt 0:00:24]} Kf8 {[%emt 0:03:13]} 61. Nh7+ {[%emt 0:00:41]} Kg8 {[%emt 0:00:16]} 62. Ng5 {[%emt 0:00:03]} Kf8 {[%emt 0:00:09]} 63. Qb8 {[%emt 0:00:13]} Kg8 {[%emt 0:02:32]} 64. Qe5 {[%emt 0:00:23]} Bd7 {[%emt 0:00:17]} 65. Kxh5 {[%emt 0:00:25]} Qc2 {[%emt 0:01:33]} 66. Qb8+ {[%emt 0:00:16]} Bc8 {[%emt 0:00:17]} 67. Nh3 {[%emt 0:00:44]} Qc3 {[%emt 0:00:45]} 68. Kg6 {[%emt 0:01:02]} Qc6 {[%emt 0:00:16]} 69. Kg5 {[%emt 0:00:17]} Qb7 {[%emt 0:00:55]} 70. Qd6 {[%emt 0:00:53]} Qd7 {[%emt 0:00:11]} 71. Qc5 {[%emt 0:00:48]} Qd8+ {[%emt 0:00:47]} 72. Kh5 {[%emt 0:00:02]} g6+ {[%emt 0:00:36]} 73. Kh6 {[%emt 0:00:33]} Bd7 {[%emt 0:01:22]} 74. Ng5 {[%emt 0:01:20]} Qf6 {[%emt 0:00:14]} 75. Nf7 {[%emt 0:01:04]} 0-1

[Event "14th Chennai GM Open 2023"]
[Site "Chennai"]
[Date "2024.01.03"]
[Round "5.9"]
[White "Shahil Dey"]
[Black "Jake Shanty"]
[Result "1/2-1/2"]
[ECO "B20"]
[WhiteElo "2368"]
[BlackElo "1903"]
[Annotator "RC"]
[PlyCount "97"]
[EventDate "2023.12.31"]
[EventType "swiss"]
[EventCountry "IND"]
[SourceTitle "playchess.com"]
[Source "ChessBase"]
[SourceQuality "1"]
[TimeControl "5400+30"]

1. e4 {[%emt 0:00:04]} c5 {[%emt 0:00:12]} 2. Ne2 {[%emt 0:00:05]} d6 {[%emt 0:00:45]} 3. g3 {[%emt 0:00:06]} Nc6 {[%emt 0:00:49]} 4. Bg2 {[%emt 0:00:09]} g6 {[%emt 0:00:34]} 5. c3 {[%emt 0:00:18]} Bg7 {[%emt 0:02:36]} 6. d4 {[%emt 0:03:53]} e5 {[%emt 0:14:02]} 7. dxc5 {[%emt 0:12:35]} dxc5 {[%emt 0:00:41]} 8. Qxd8+ {[%emt 0:06:58]} Kxd8 {[%emt 0:06:24]} 9. Na3 {[%emt 0:03:06]} Be6 {[%emt 0:14:35]} 10. Be3 {[%emt 0:01:29]} b6 {[%emt 0:03:50]} 11. f4 {[%emt 0:02:24]} Nf6 {[%emt 0:17:02]} 12. f5 {[%emt 0:04:07]} Bd7 {[%emt 0:02:08]} 13. h3 {[%emt 0:05:00]} h6 {[%emt 0:08:12]} 14. g4 {[%emt 0:00:19]} Ke7 {[%emt 0:02:56]} 15. Nc4 {[%emt 0:01:22]} Ne8 {[%emt 0:01:13]} 16. Bf2 {[%emt 0:03:01]} Nc7 {[%emt 0:09:13]} 17. a4 {[%emt 0:02:55]} Nd8 {[%emt 0:10:00]} 18. a5 {[%emt 0:03:37]} Nb7 {[%emt 0:01:40]} 19. axb6 {[%emt 0:02:15]} axb6 {[%emt 0:00:13]} 20. Kd2 {[%emt 0:01:53]} Rxa1 {[%emt 0:02:44]} 21. Rxa1 {[%emt 0:00:01]} Ra8 {[%emt 0:00:21]} 22. Rxa8 {[%emt 0:04:20]} Nxa8 {[%emt 0:00:06]} 23. b4 {[%emt 0:00:05]} g5 {[%emt 0:00:54]} 24. bxc5 {[%emt 0:02:04]} bxc5 {[%emt 0:00:14]} 25. Nc1 {[%emt 0:00:19]} Bb5 {[%emt 0:00:41]} 26. Na3 {[%emt 0:01:53]} Ba6 {[%emt 0:00:31]} 27. Bf3 {[%emt 0:02:26]} Nb6 {[%emt 0:00:38]} 28. Bd1 {[%emt 0:02:33]} Kd6 {[%emt 0:00:31]} 29. Bb3 {[%emt 0:03:15]} f6 {[%emt 0:00:28]} 30. Bf7 {[%emt 0:00:44]} Bf1 {[%emt 0:00:36]} 31. h4 {[%emt 0:00:32]} Bh3 {[%emt 0:00:29]} 32. hxg5 {[%emt 0:00:35]} hxg5 {[%emt 0:00:07]} 33. Nb5+ {[%emt 0:02:29]} Kd7 {[%emt 0:00:49]} 34. Nd3 {[%emt 0:06:41]} Bf8 {[%emt 0:00:33]} 35. c4 {[%emt 0:07:34]} Bxg4 {[%emt 0:00:30]} 36. Nc3 {[%emt 0:00:30]} Bf3 {[%emt 0:00:36]} 37. Ne1 {[%emt 0:02:37]} Bg4 {[%emt 0:00:23]} 38. Ng2 {[%emt 0:02:22]} Bf3 {[%emt 0:00:32]} 39. Ne1 {[%emt 0:00:14]} Bg4 {[%emt 0:00:05]} 40. Be6+ {[%emt 0:04:36]} Kd8 {[%emt 0:00:45]} 41. Nd3 {[%emt 0:01:04]} Bf3 {[%emt 0:00:39]} 42. Ke3 {[%emt 0:00:01]} Bh5 {[%emt 0:00:15]} 43. Kd2 {[%emt 0:00:47]} Bf3 {[%emt 0:00:08]} 44. Ne1 {[%emt 0:00:40]} Bh5 {[%emt 0:00:45]} 45. Kd3 {[%emt 0:00:19]} Na5 {[%emt 0:00:42]} 46. Nc2 {[%emt 0:00:46]} Nb3 {[%emt 0:00:43]} 47. Ne3 {[%emt 0:01:35]} Nd4 {[%emt 0:00:24]} 48. Ncd5 {[%emt 0:01:11]} Nxd5 {[%emt 0:00:34]} 49. Nxd5 {[%emt 0:00:38]} 1/2-1/2